fUST/lending_fUST_20241124
["ID","MTS","AMOUNT","RATE_DAILY","PERIOD"]
[343191427,1732431042495,-501.26171242,0.00019178,2]
[343191428,1732431042505,-519.40602482,0.00019178,2]
[343191429,1732431042515,-259.39632326,0.00019178,2]
[343191430,1732431042525,-233.74217413,0.00019178,2]
[343191431,1732431042534,-497.0742151,0.00019178,2]
[343191432,1732431042544,-233.57122057,0.00019178,2]
[343191433,1732431042554,-34.52269711,0.00019178,2]
[343191434,1732431042585,-151.0,0.00019177,2]
[343191435,1732431042595,-116.47730289,0.00019178,2]
[343191436,1732431042604,-124.36031028,0.00019178,2]
[343191477,1732431045327,-1017.82038536,0.00019175,2]
[343191479,1732431045337,-151.0,0.00019177,2]
[343191481,1732431045347,-26.63968972,0.00019178,2]
[343191483,1732431045356,-151.0,0.00019178,2]
[343191485,1732431045366,-151.0,0.00019178,2]
[343191487,1732431045375,-151.0,0.00019178,2]
[343191489,1732431045386,-151.0,0.00019178,2]
[343191491,1732431045396,-504.20665369,0.00019178,2]
[343191493,1732431045406,-191.6640279,0.00019178,2]
[343191495,1732431045415,-215.552382,0.00019178,2]
[343191497,1732431045425,-502.98187375,0.00019178,2]
[343191499,1732431045435,-503.79370521,0.00019178,2]
[343191501,1732431045444,-500.0,0.00019178,2]
[343191503,1732431045453,-512.96031217,0.00019178,2]
[343191505,1732431045463,-500.0,0.00019178,2]
[343191507,1732431045472,-151.0,0.00019178,2]
[343191509,1732431045481,-506.6146539,0.00019178,2]
[343191511,1732431045491,-267.246924,0.00019178,2]
[343191513,1732431045499,-569.86780568,0.00019178,2]
[343191515,1732431045508,-505.00704253,0.00019178,2]
[343191517,1732431045517,-184.26654081,0.00019178,2]
[343191519,1732431045527,-501.268027,0.00019178,2]
[343191521,1732431045536,-503.26833675,0.00019178,2]
[343191523,1732431045545,-501.61558545,0.00019178,2]
[343191525,1732431045554,-523.44439638,0.00019178,2]
[343191527,1732431045564,-505.3871643,0.00019178,2]
[343191529,1732431045573,-505.0,0.00019178,2]
[343191531,1732431045582,-495.69375482,0.00019178,2]
[343191614,1732431465998,402.7867,0.00028805,120]
[343191615,1732431466311,301.714382,0.00028805,120]
[343191616,1732431466606,903.5,0.00028805,120]
[343191617,1732431493286,168.216094,0.00013973,2]
[343194458,1732431992151,-235.7522136,0.00017875,2]
[343195186,1732432238002,-697.95459805,0.00017519,2]
[343195189,1732432238013,-190.307427,0.00018043,2]
[343195192,1732432238023,-22203.202157,0.00018055,2]
[343195195,1732432238032,-678.07079487,0.00018922,2]
[343195197,1732432238042,-268.07847551,0.00018978,2]
[343195198,1732432238051,-20962.32206845,0.00018978,2]
[343195199,1732432238061,-336.4149795,0.00019022,2]
[343195200,1732432238070,-8159.27509907,0.00019023,2]
[343195201,1732432238079,-246.91,0.00019068,3]
[343195202,1732432238089,-740.73,0.00019068,3]
[343195203,1732432238098,-201.86998937,0.00019077,2]
[343195204,1732432238109,-202.43909829,0.00019077,2]
[343195205,1732432238122,-162.08674524,0.00019077,2]
[343195206,1732432238132,-576.52847582,0.00019077,2]
[343195207,1732432238142,-500.0,0.00019077,2]
[343195208,1732432238152,-378.07696726,0.00019077,2]
[343195209,1732432238163,-666.0,0.00019078,2]
[343195210,1732432238173,-250000.0,0.00019078,2]
[343195211,1732432238183,-763.36528902,0.00019177,2]
[343195212,1732432238194,-500.58270002,0.00019178,2]
[343195213,1732432238204,-504.2321978,0.00019178,2]
[343195214,1732432238214,-504.91035427,0.00019178,2]
[343195215,1732432238224,-500.0,0.00019178,2]
[343195216,1732432238234,-500.0,0.00019178,2]
[343195217,1732432238243,-503.03005434,0.00019178,2]
[343195218,1732432238253,-500.0,0.00019178,2]
[343195219,1732432238263,-500.0,0.00019178,2]
[343195220,1732432238272,-506.33230676,0.00019178,2]
[343195221,1732432238283,-503.17481544,0.00019178,2]
[343195222,1732432238293,-500.0,0.00019178,2]
[343195223,1732432238303,-500.0,0.00019178,2]
[343195224,1732432238312,-500.0,0.00019178,2]
[343195225,1732432238322,-154.392164,0.00019178,2]
[343195226,1732432238332,-503.24572491,0.00019178,2]
[343195227,1732432238342,-411.81525775,0.00019178,2]
[343195228,1732432238352,-500.0,0.00019178,2]
[343195229,1732432238362,-370.94534478,0.00019178,2]
[343195230,1732432238373,-507.48447123,0.00019178,2]
[343195231,1732432238383,-500.0,0.00019178,2]
[343195232,1732432238393,-504.75464095,0.00019178,2]
[343195233,1732432238403,-502.12971468,0.00019178,2]
[343195234,1732432238413,-501.20343496,0.00019178,2]
[343195235,1732432238423,-360.09209045,0.00019178,2]
[343195236,1732432238433,-501.23841898,0.00019178,2]
[343195237,1732432238443,-204.39,0.00019178,2]
[343195238,1732432238452,-507.13519093,0.00019178,2]
[343195239,1732432238461,-502.75421268,0.00019178,2]
[343195240,1732432238471,-500.0,0.00019178,2]
[343195241,1732432238480,-501.67262901,0.00019178,2]
[343195242,1732432238490,-527.18,0.00019178,2]
[343195243,1732432238500,-549.64074267,0.00019178,2]
[343195244,1732432238510,-507.28733849,0.00019178,2]
[343195245,1732432238520,-524.76014605,0.00019178,2]
[343195246,1732432238530,-500.0,0.00019178,2]
[343195247,1732432238539,-500.0,0.00019178,2]
[343195248,1732432238549,-505.55128665,0.00019178,2]
[343195249,1732432238559,-500.0,0.00019178,2]
[343195250,1732432238569,-500.0,0.00019178,2]
[343195251,1732432238579,-500.0,0.00019178,2]
[343195252,1732432238589,-500.0,0.00019178,2]
[343195253,1732432238599,-635.04052201,0.00019178,2]
[343195254,1732432238610,-500.0,0.00019178,2]
[343195255,1732432238621,-500.0,0.00019178,2]
[343195256,1732432238630,-500.0,0.00019178,2]
[343195257,1732432238640,-500.0,0.00019178,2]
[343195258,1732432238650,-500.0,0.00019178,2]
[343195259,1732432238660,-365.98970602,0.00019178,2]
[343195260,1732432238670,-500.0,0.00019178,2]
[343195261,1732432238680,-500.0,0.00019178,2]
[343195262,1732432238690,-500.0,0.00019178,2]
[343195263,1732432238700,-500.0,0.00019178,2]
[343195264,1732432238710,-500.0,0.00019178,2]
[343195265,1732432238721,-500.0,0.00019178,2]
[343195266,1732432238730,-500.0,0.00019178,2]
[343195267,1732432238740,-504.35962979,0.00019178,2]
[343195268,1732432238750,-500.0,0.00019178,2]
[343195269,1732432238761,-500.0,0.00019178,2]
[343195270,1732432238771,-500.0,0.00019178,2]
[343195271,1732432238780,-584.58370928,0.00019178,2]
[343195272,1732432238790,-500.0,0.00019178,2]
[343195273,1732432238800,-500.0,0.00019178,2]
[343195274,1732432238809,-563.01287785,0.00019178,2]
[343195275,1732432238819,-502.63312043,0.00019178,2]
[343195276,1732432238828,-500.0,0.00019178,2]
[343195277,1732432238838,-151.0,0.00019178,2]
[343195278,1732432238847,-501.15230211,0.00019178,2]
[343195279,1732432238857,-151.0,0.00019178,2]
[343195280,1732432238866,-151.0,0.00019178,2]
[343195281,1732432238876,-236.7302805,0.00019178,2]
[343195282,1732432238886,-544.81,0.00019178,2]
[343195283,1732432238896,-485.20415124,0.00019178,2]
[343195284,1732432238905,-151.0,0.00019178,2]
[343195285,1732432238914,-151.0,0.00019178,2]
[343195286,1732432238924,-151.0,0.00019178,2]
[343195287,1732432238934,-501.6087728,0.00019178,2]
[343195288,1732432238943,-344.5,0.00019178,2]
[343195289,1732432238954,-500.49513182,0.00019178,2]
[343195290,1732432238963,-500.0,0.00019178,2]
[343195291,1732432238972,-500.14499932,0.00019178,2]
[343195292,1732432238982,-502.98406179,0.00019178,2]
[343195293,1732432238992,-501.44109642,0.00019178,2]
[343195294,1732432239002,-500.0,0.00019178,2]
[343195295,1732432239011,-500.0,0.00019178,2]
[343195296,1732432239021,-500.0,0.00019178,2]
[343195297,1732432239030,-500.7520182,0.00019178,2]
[343195298,1732432239040,-500.0,0.00019178,2]
[343195299,1732432239050,-500.0,0.00019178,2]
[343195300,1732432239059,-500.0,0.00019178,2]
[343195301,1732432239069,-320.40367123,0.00019178,2]
[343195302,1732432239078,-500.0,0.00019178,2]
[343195303,1732432239087,-500.0,0.00019178,2]
[343195304,1732432239096,-504.35796079,0.00019178,2]
[343195305,1732432239106,-500.0,0.00019178,2]
[343195306,1732432239120,-500.91486296,0.00019178,2]
[343195307,1732432239130,-501.21053573,0.00019178,2]
[343195308,1732432239140,-505.93734496,0.00019178,2]
[343195309,1732432239149,-544.08832026,0.00019178,2]
[343195310,1732432239160,-501.2459461,0.00019178,2]
[343195311,1732432239170,-500.0,0.00019178,2]
[343195312,1732432239180,-500.0,0.00019178,2]
[343195313,1732432239191,-500.0,0.00019178,2]
[343195314,1732432239201,-500.0,0.00019178,2]
[343195315,1732432239210,-500.0,0.00019178,2]
[343195316,1732432239219,-507.07301343,0.00019178,2]
[343195317,1732432239229,-507.01386928,0.00019178,2]
[343195318,1732432239238,-500.0,0.00019178,2]
[343195319,1732432239247,-532.16,0.00019178,2]
[343195320,1732432239257,-502.75704761,0.00019178,2]
[343195321,1732432239266,-500.0,0.00019178,2]
[343195322,1732432239275,-500.0,0.00019178,2]
[343195323,1732432239285,-151.0,0.00019178,2]
[343195324,1732432239295,-151.0,0.00019178,2]
[343195325,1732432239305,-151.0,0.00019178,2]
[343195326,1732432239315,-151.0,0.00019178,2]
[343195327,1732432239325,-500.96585956,0.00019178,2]
[343195328,1732432239335,-500.0,0.00019178,2]
[343195329,1732432239344,-151.0,0.00019178,2]
[343195330,1732432239354,-151.0,0.00019178,2]
[343195331,1732432239364,-151.0,0.00019178,2]
[343195332,1732432239374,-251.790124,0.00019178,2]
[343195333,1732432239386,-186.05619169,0.00019178,2]
[343195334,1732432239396,-570.15,0.00019178,2]
[343195335,1732432239406,-500.0,0.00019178,2]
[343195336,1732432239416,-241.66569832,0.00019178,2]
[343195337,1732432239425,-500.0,0.00019178,2]
[343195338,1732432239436,-500.0,0.00019178,2]
[343195339,1732432239446,-500.0,0.00019178,2]
[343195340,1732432239456,-500.0,0.00019178,2]
[343195341,1732432239466,-500.0,0.00019178,2]
[343195342,1732432239475,-151.0,0.00019178,2]
[343195343,1732432239485,-500.0,0.00019178,2]
[343195344,1732432239494,-555.96813552,0.00019178,2]
[343195345,1732432239504,-500.0,0.00019178,2]
[343195346,1732432239513,-500.0,0.00019178,2]
[343195347,1732432239522,-500.0,0.00019178,2]
[343195348,1732432239531,-500.0,0.00019178,2]
[343195349,1732432239541,-615.58,0.00019178,2]
[343195350,1732432239551,-500.0,0.00019178,2]
[343195351,1732432239560,-503.08013427,0.00019178,2]
[343195352,1732432239569,-500.0,0.00019178,2]
[343195354,1732432239579,-501.4837617,0.00019178,2]
[343195355,1732432239589,-578.33,0.00019178,2]
[343195356,1732432239598,-151.0,0.00019178,2]
[343195357,1732432239607,-151.0,0.00019178,2]
[343195358,1732432239617,-151.0,0.00019178,2]
[343195359,1732432239626,-151.0,0.00019178,2]
[343195360,1732432239636,-151.0,0.00019178,2]
[343195361,1732432239646,-500.0,0.00019178,2]
[343195362,1732432239655,-151.0,0.00019178,2]
[343195363,1732432239664,-151.0,0.00019178,2]
[343195364,1732432239674,-208.898178,0.00019178,2]
[343195365,1732432239684,-500.0,0.00019178,2]
[343195366,1732432239694,-500.0,0.00019178,2]
[343195367,1732432239704,-500.0,0.00019178,2]
[343195368,1732432239714,-500.0,0.00019178,2]
[343195369,1732432239725,-500.0,0.00019178,2]
[343195370,1732432239735,-500.0,0.00019178,2]
[343195371,1732432239745,-500.0,0.00019178,2]
[343195372,1732432239756,-538.1452184,0.00019178,2]
[343195373,1732432239766,-500.0,0.00019178,2]
[343195374,1732432239776,-500.0,0.00019178,2]
[343195375,1732432239787,-500.0,0.00019178,2]
[343195376,1732432239798,-500.0,0.00019178,2]
[343195377,1732432239807,-500.0,0.00019178,2]
[343195378,1732432239817,-500.0,0.00019178,2]
[343195379,1732432239826,-500.0,0.00019178,2]
[343195380,1732432239836,-500.0,0.00019178,2]
[343195381,1732432239846,-500.0,0.00019178,2]
[343195383,1732432239856,-500.0,0.00019178,2]
[343195385,1732432239865,-501.59723789,0.00019178,2]
[343195386,1732432239875,-500.0,0.00019178,2]
[343195387,1732432239884,-502.04644562,0.00019178,2]
[343195388,1732432239894,-291.27,0.00019178,2]
[343195389,1732432239903,-500.88369206,0.00019178,2]
[343195390,1732432239912,-507.56964108,0.00019178,2]
[343195391,1732432239922,-502.1353408,0.00019178,2]
[343195392,1732432239931,-151.0,0.00019178,2]
[343195393,1732432239942,-151.0,0.00019178,2]
[343195394,1732432239951,-504.03019166,0.00019178,2]
[343195395,1732432239960,-151.0,0.00019178,2]
[343195396,1732432239970,-151.0,0.00019178,2]
[343195397,1732432239980,-151.0,0.00019178,2]
[343195398,1732432239990,-151.0,0.00019178,2]
[343195399,1732432240000,-5000.0,0.00019178,2]
[343195400,1732432240010,-4209.11642296,0.00019178,2]
[343195401,1732432240020,-151.0,0.00019178,2]
[343195402,1732432240029,-151.0,0.00019178,2]
[343195403,1732432240039,-500.0,0.00019178,2]
[343195404,1732432240048,-151.0,0.00019178,2]
[343195405,1732432240058,-151.0,0.00019178,2]
[343195406,1732432240068,-207.784676,0.00019178,2]
[343195407,1732432240077,-151.0,0.00019178,2]
[343195409,1732432240087,-151.0,0.00019178,2]
[343195410,1732432240096,-151.0,0.00019178,2]
[343195411,1732432240108,-151.0,0.00019178,2]
[343195412,1732432240121,-225.007148,0.00019178,2]
[343195413,1732432240131,-502.93221807,0.00019178,2]
[343195414,1732432240142,-500.0,0.00019178,2]
[343195415,1732432240152,-503.59475858,0.00019178,2]
[343195416,1732432240163,-500.0,0.00019178,2]
[343195417,1732432240172,-151.0,0.00019178,2]
[343195418,1732432240183,-151.0,0.00019178,2]
[343195419,1732432240195,-151.0,0.00019178,2]
[343195420,1732432240204,-151.0,0.00019178,2]
[343195421,1732432240214,-501.4241214,0.00019178,2]
[343195422,1732432240223,-151.0,0.00019178,2]
[343195423,1732432240233,-151.0,0.00019178,2]
[343195424,1732432240244,-502.3870153,0.00019178,2]
[343195425,1732432240253,-151.0,0.00019178,2]
[343195426,1732432240262,-151.0,0.00019178,2]
[343195427,1732432240357,-151.0,0.00019178,2]
[343195428,1732432240368,-151.0,0.00019178,2]
[343195429,1732432240377,-151.0,0.00019178,2]
[343195430,1732432240386,-151.0,0.00019178,2]
[343195431,1732432240396,-503.10839698,0.00019178,2]
[343195432,1732432240405,-502.26754348,0.00019178,2]
[343195433,1732432240415,-500.0,0.00019178,2]
[343195434,1732432240424,-500.0,0.00019178,2]
[343195435,1732432240435,-238.6964,0.00019178,2]
[343195436,1732432240444,-151.0,0.00019178,2]
[343195437,1732432240454,-151.0,0.00019178,2]
[343195438,1732432240465,-151.0,0.00019178,2]
[343195439,1732432240474,-151.0,0.00019178,2]
[343195440,1732432240483,-151.0,0.00019178,2]
[343195441,1732432240492,-151.0,0.00019178,2]
[343195442,1732432240502,-151.0,0.00019178,2]
[343195443,1732432240511,-151.0,0.00019178,2]
[343195444,1732432240521,-274.703496,0.00019178,2]
[343195445,1732432240531,-500.0,0.00019178,2]
[343195446,1732432240540,-500.0,0.00019178,2]
[343195447,1732432240550,-500.0,0.00019178,2]
[343195448,1732432240559,-500.0,0.00019178,2]
[343195449,1732432240569,-151.0,0.00019178,2]
[343195450,1732432240578,-151.0,0.00019178,2]
[343195451,1732432240588,-151.0,0.00019178,2]
[343195452,1732432240598,-151.0,0.00019178,2]
[343195453,1732432240608,-502.58801056,0.00019178,2]
[343195454,1732432240618,-151.0,0.00019178,2]
[343195455,1732432240627,-151.0,0.00019178,2]
[343195456,1732432240638,-164.719638,0.00019178,2]
[343195457,1732432240648,-151.07513872,0.00019452,2]
[343195458,1732432240658,-503.39402825,0.00019452,2]
[343195459,1732432240668,-507.32468523,0.00019452,2]
[343195460,1732432240678,-295.72311066,0.00019452,2]
[343195461,1732432240689,-500.0,0.00019452,2]
[343195462,1732432240699,-500.0,0.00019452,2]
[343195463,1732432240708,-472.14,0.00019452,2]
[343195464,1732432240718,-500.0,0.00019452,2]
[343195465,1732432240727,-500.0,0.00019452,2]
[343195466,1732432240737,-500.0,0.00019452,2]
[343195467,1732432240747,-500.0,0.00019452,2]
[343195468,1732432240757,-500.0,0.00019452,2]
[343195469,1732432240768,-500.0,0.00019452,2]
[343195470,1732432240778,-500.0,0.00019452,2]
[343195471,1732432240788,-500.0,0.00019452,2]
[343195472,1732432240797,-405.38789449,0.00019452,2]
[343195473,1732432240807,-342.78,0.00019452,2]
[343195474,1732432240816,-209.17,0.00019452,2]
[343195475,1732432240826,-500.0,0.00019452,2]
[343195476,1732432240835,-293.31,0.00019452,2]
[343195477,1732432240844,-179.58315598,0.00019452,2]
[343195478,1732432240853,-500.0,0.00019452,2]
[343195479,1732432240863,-130.27324859,0.00019452,2]
[343195480,1732432240885,-369.72675141,0.00019452,2]
[343195481,1732432240894,-277.35,0.00019452,2]
[343195482,1732432240904,-542.27052717,0.00019452,2]
[343195483,1732432240913,-500.0,0.00019452,2]
[343195484,1732432240923,-151.0,0.00019452,2]
[343195485,1732432240934,-151.0,0.00019452,2]
[343195486,1732432240944,-500.0,0.00019452,2]
[343195487,1732432240953,-519.48982318,0.00019452,2]
[343195488,1732432240963,-500.92282938,0.00019452,2]
[343195489,1732432240973,-621.64,0.00019452,2]
[343195490,1732432240982,-505.93220345,0.00019452,2]
[343195491,1732432240991,-501.4491992,0.00019452,2]
[343195492,1732432241000,-310.21278014,0.00019452,2]
[343195493,1732432241009,-156.38083326,0.00019452,2]
[343195494,1732432241019,-502.49417997,0.00019452,2]
[343195495,1732432241028,-500.0,0.00019452,2]
[343195496,1732432241037,-501.72635215,0.00019452,2]
[343195497,1732432241046,-502.37472687,0.00019452,2]
[343195498,1732432241055,-179.71827225,0.00019452,2]
[343195499,1732432241065,-500.0,0.00019452,2]
[343195500,1732432241075,-500.0,0.00019452,2]
[343195501,1732432241085,-151.0,0.00019452,2]
[343195502,1732432241095,-267.81,0.00019452,2]
[343195503,1732432241104,-500.0,0.00019452,2]
[343195504,1732432241118,-509.28,0.00019452,2]
[343195505,1732432241127,-572.59993161,0.00019452,2]
[343195506,1732432241136,-230.44,0.00019452,2]
[343195507,1732432241145,-500.0,0.00019452,2]
[343195508,1732432241155,-334.82,0.00019452,2]
[343195509,1732432241164,-615.58,0.00019452,2]
[343195510,1732432241173,-259.71053118,0.00019452,2]
[343195511,1732432241184,-151.0,0.00019452,2]
[343195512,1732432241194,-151.0,0.00019452,2]
[343195513,1732432241203,-500.0,0.00019452,2]
[343195514,1732432241213,-440.78,0.00019452,2]
[343195515,1732432241222,-500.0,0.00019452,2]
[343195516,1732432241231,-500.0,0.00019452,2]
[343195517,1732432241241,-334.23,0.00019452,2]
[343195518,1732432241250,-260.69,0.00019452,2]
[343195519,1732432241259,-500.0,0.00019452,2]
[343195520,1732432241268,-500.0,0.00019452,2]
[343195521,1732432241277,-151.0,0.00019452,2]
[343195522,1732432241287,-151.0,0.00019452,2]
[343195523,1732432241295,-500.0,0.00019452,2]
[343195524,1732432241304,-500.0,0.00019452,2]
[343195525,1732432241313,-151.0,0.00019452,2]
[343195526,1732432241322,-151.0,0.00019452,2]
[343195527,1732432241331,-158.616222,0.00019452,2]
[343195528,1732432241341,-229.88179285,0.00019452,2]
[343195529,1732432241350,-500.0,0.00019452,2]
[343195530,1732432241359,-151.0,0.00019452,2]
[343195531,1732432241368,-151.0,0.00019452,2]
[343195532,1732432241378,-500.0,0.00019452,2]
[343195533,1732432241387,-500.0,0.00019452,2]
[343195534,1732432241397,-500.0,0.00019452,2]
[343195535,1732432241406,-151.0,0.00019452,2]
[343195536,1732432241416,-204.58168543,0.00019726,2]
[343195537,1732432241426,-500.0,0.00019726,2]
[343195538,1732432241437,-500.0,0.00019726,2]
[343195539,1732432241446,-313.14,0.00019726,2]
[343195540,1732432241456,-365.47,0.00019726,2]
[343195541,1732432241465,-500.0,0.00019726,2]
[343195542,1732432241475,-182.03482814,0.00019726,2]
[343195543,1732432241485,-151.82294081,0.00019726,2]
[343195544,1732432241494,-500.0,0.00019726,2]
[343195545,1732432241504,-240.12,0.00019726,2]
[343195546,1732432241514,-500.0,0.00019726,2]
[343195547,1732432241523,-291.18,0.00019726,2]
[343195548,1732432241532,-500.0,0.00019726,2]
[343195549,1732432241542,-247.52,0.00019726,2]
[343195550,1732432241551,-241.49,0.00019726,2]
[343195551,1732432241561,-151.0,0.00019726,2]
[343195552,1732432241570,-151.0,0.00019726,2]
[343195553,1732432241580,-415.28878362,0.00019726,2]
[343195554,1732432241589,-273.82,0.00019726,2]
[343195555,1732432241599,-168.5168083,0.00019726,2]
[343195556,1732432241609,-500.0,0.00019726,2]
[343195557,1732432241619,-151.0,0.00019726,2]
[343195558,1732432241629,-445.81,0.00019726,2]
[343195559,1732432241638,-500.0,0.00019726,2]
[343195560,1732432241647,-615.58,0.00019726,2]
[343195561,1732432241656,-383.33,0.00019726,2]
[343195562,1732432241666,-500.0,0.00019726,2]
[343195563,1732432241675,-500.0,0.00019726,2]
[343195564,1732432241685,-500.0,0.00019726,2]
[343195565,1732432241695,-305.35700526,0.00019726,2]
[343195566,1732432241704,-151.0,0.00019726,2]
[343195567,1732432241714,-500.0,0.00019726,2]
[343195568,1732432241723,-165.10595591,0.00019726,2]
[343195569,1732432241733,-151.0,0.00019726,2]
[343195570,1732432241743,-500.0,0.00019726,2]
[343195571,1732432241752,-519.39,0.00019726,2]
[343195572,1732432241762,-570.04133223,0.00019726,2]
[343195573,1732432241772,-5569.99823984,0.0001999,2]
[343195574,1732432241782,-151.0,0.0001999,2]
[343195575,1732432241792,-151.0,0.0001999,2]
[343195576,1732432241801,-500.0,0.0002,4]
[343195577,1732432241811,-500.0,0.0002,2]
[343195578,1732432241821,-276.9,0.0002,2]
[343195579,1732432241830,-500.0,0.0002,2]
[343195580,1732432241840,-500.29,0.0002,2]
[343195581,1732432241849,-204.67010399,0.0002,2]
[343195582,1732432241859,-275.31,0.0002,2]
[343195583,1732432241868,-566.4,0.0002,2]
[343195584,1732432241878,-151.0,0.0002,2]
[343195585,1732432241888,-500.0,0.0002,2]
[343195586,1732432241897,-615.58,0.0002,2]
[343195587,1732432241907,-500.0,0.0002,2]
[343195588,1732432241917,-406.01,0.0002,2]
[343195589,1732432241927,-500.0,0.0002,2]
[343195590,1732432241938,-500.0,0.0002,2]
[343195591,1732432241947,-229.0,0.0002,2]
[343195592,1732432241957,-500.0,0.0002,2]
[343195593,1732432241967,-151.0,0.00020219,2]
[343195594,1732432241976,-151.0,0.00020219,2]
[343195595,1732432241987,-640.90391245,0.00020219,2]
[343195596,1732432241997,-678.07079482,0.00020253,2]
[343195597,1732432242006,-151.0,0.00020273,2]
[343195598,1732432242016,-500.0,0.00020273,2]
[343195599,1732432242025,-500.0,0.00020273,2]
[343195600,1732432242035,-151.0,0.00020273,2]
[343195601,1732432242045,-151.0,0.00020273,2]
[343195602,1732432242054,-615.58,0.00020273,2]
[343195603,1732432242064,-500.0,0.00020273,2]
[343195604,1732432242073,-500.0,0.00020273,2]
[343195605,1732432242083,-500.0,0.00020273,2]
[343195606,1732432242093,-500.0,0.00020273,2]
[343195607,1732432242103,-203.77085929,0.00020274,2]
[343195608,1732432242113,-493.82,0.00020438,3]
[343195609,1732432242126,-336.41497946,0.00020492,2]
[343195610,1732432242135,-2000.0,0.000205,2]
[343195611,1732432242145,-151.0,0.000205,2]
[343195612,1732432242155,-500.0,0.00020547,2]
[343195613,1732432242165,-500.0,0.00020547,2]
[343195614,1732432242175,-151.0,0.00020547,2]
[343195615,1732432242185,-615.58,0.00020547,2]
[343195616,1732432242196,-151.0,0.00020547,2]
[343195617,1732432242205,-130.73417938,0.00020547,2]
[343195646,1732432243127,-3377.14365927,0.00018978,2]
[343195648,1732432243139,-83880.03620798,0.00018978,2]
[343195677,1732432245946,-16236.0,0.00018978,2]
[343195678,1732432245958,-146506.82013275,0.00018978,2]
[343195679,1732432245967,-500.0,0.00019178,2]
[343195680,1732432245977,-500.0,0.00019178,2]
[343195681,1732432245986,-60.57706623,0.00019178,2]
[343195682,1732432246001,-90.60514377,0.00019178,2]
[343195683,1732432246011,-151.0,0.00019178,2]
[343195684,1732432246020,-151.0,0.00019178,2]
[343195685,1732432246029,-151.0,0.00019178,2]
[343195686,1732432246039,-151.0,0.00019178,2]
[343195687,1732432246048,-151.0,0.00019178,2]
[343195688,1732432246058,-151.0,0.00019178,2]
[343195689,1732432246067,-321.13486623,0.00019178,2]
[343195690,1732432400229,169.030355,0.00013973,2]
[343195735,1732433232211,169.030355,0.00013973,2]
[343195781,1732433432217,-1011.61695995,0.0001683,2]
[343195795,1732433438305,-2662.69670172,0.0001683,2]
[343195796,1732433438316,-49.64178038,0.00017,2]
[343195799,1732433438565,-118.0399433,0.00017,2]
[343195800,1732433438578,-250.0,0.00017708,2]
[343195801,1732433438588,-300.0,0.00017794,2]
[343195802,1732433438599,-9352.0308637,0.00017795,2]
[343195803,1732433438611,-898.3359664,0.00017861,2]
[343195804,1732433438624,-272.269178,0.00018017,2]
[343195805,1732433438635,-257.497716,0.00018272,2]
[343195806,1732433438646,-4007.38126289,0.00018978,2]
[343195807,1732433438658,-1273.88632969,0.00019077,2]
[343195808,1732433438670,-642.33,0.00019168,3]
[343195809,1732433438681,-301.80224986,0.00019173,2]
[343195810,1732433438692,-500.0,0.00019173,2]
[343195811,1732433438703,-1630.85140633,0.00019177,2]
[343195812,1732433438715,-500.0,0.00019177,2]
[343195813,1732433438727,-500.0,0.00019177,2]
[343195814,1732433438739,-500.0,0.00019177,2]